[Event "10th Dolomiti Open 2019"]
[Site "Forni di Sopra"]
[Date "2019.06.16"]
[Round "2.9"]
[White "Valsecchi, Alessio"]
[Black "Dappiano, Andrea"]
[Result "0-1"]
[ECO "D05"]
[WhiteElo "2504"]
[BlackElo "2271"]
[Annotator "RC"]
[PlyCount "119"]
[EventDate "2019.06.15"]
[EventType "swiss"]
[EventCountry "ITA"]
[SourceTitle "playchess.com"]
[Source "ChessBase"]
[SourceQuality "1"]
[TimeControl "40/5400+30:1800+30"]

1. d4 {[%emt 0:00:00]} e6 {[%emt 0:00:00]} 2. Nf3 {[%emt 0:00:00]} Nf6 {[%emt 0:00:00]} 3. e3 {[%emt 0:00:00]} c5 {[%emt 0:04:13]} 4. Bd3 {[%emt 0:00:08]} d5 {[%emt 0:00:40]} 5. b3 {[%emt 0:00:15]} Nc6 {[%emt 0:01:03]} 6. O-O {[%emt 0:00:25]} Bd6 {[%emt 0:01:46]} 7. Bb2 {[%emt 0:00:16]} O-O {[%emt 0:01:34]} 8. a3 {[%emt 0:02:50]} b6 {[%emt 0:00:49]} 9. Nbd2 {[%emt 0:00:59]} Bb7 {[%emt 0:01:01]} 10. Ne5 {[%emt 0:00:25]} Rc8 {[%emt 0:07:42]} 11. Qe2 {[%emt 0:02:13]} Qc7 {[%emt 0:05:45]} 12. f4 {[%emt 0:00:18]} Ne7 {[%emt 0:00:44]} 13. Rac1 {[%emt 0:01:04]} Ne4 {[%emt 0:16:21]} 14. Bxe4 {[%emt 0:13:48]} dxe4 {[%emt 0:00:58]} 15. dxc5 {[%emt 0:00:14]} Bxc5 {[%emt 0:04:32]} 16. b4 {[%emt 0:00:15]} Bd6 {[%emt 0:00:32]} 17. c4 {[%emt 0:00:12]} Nf5 {[%emt 0:08:12]} 18. Ng4 {[%emt 0:03:32]} Rfd8 {[%emt 0:06:16]} 19. Nb3 {[%emt 0:00:52]} Qe7 {[%emt 0:03:22]} 20. Nd4 {[%emt 0:10:02]} Bb8 {[%emt 0:09:27]} 21. Rc2 {[%emt 0:13:42]} a5 {[%emt 0:09:11]} 22. Qf2 {[%emt 0:03:17]} f6 {[%emt 0:00:37]} 23. Qe1 {[%emt 0:10:29]} axb4 {[%emt 0:00:35]} 24. axb4 {[%emt 0:00:14]} Bd6 {[%emt 0:01:57]} 25. b5 {[%emt 0:09:19]} Bc5 {[%emt 0:01:14]} 26. Nxf5 {[%emt 0:00:37]} exf5 {[%emt 0:00:04]} 27. Nf2 {[%emt 0:00:06]} Rd3 {[%emt 0:04:15]} 28. Bc1 {[%emt 0:00:32]} Rd6 {[%emt 0:02:54]} 29. Qe2 {[%emt 0:01:11]} Rcd8 {[%emt 0:01:55]} 30. Ra2 {[%emt 0:03:34]} Bc8 {[%emt 0:00:44]} 31. Bd2 {[%emt 0:04:26]} Be6 {[%emt 0:01:19]} 32. Rc1 {[%emt 0:00:11]} Qd7 {[%emt 0:01:12]} 33. Be1 {[%emt 0:00:50]} Qf7 {[%emt 0:00:58]} 34. Ra4 {[%emt 0:01:31]} h6 {[%emt 0:01:24]} 35. Bb4 {[%emt 0:03:06]} Bxb4 {[%emt 0:00:45]} 36. Rxb4 {[%emt 0:00:02]} Rd2 {[%emt 0:00:45]} 37. Qe1 {[%emt 0:00:13]} Qh5 {[%emt 0:00:45]} 38. Ra4 {[%emt 0:04:30]} Qe2 {[%emt 0:02:35]} 39. Ra6 {[%emt 0:08:06]} Qxe1+ {[%emt 0:00:37]} 40. Rxe1 {[%emt 0:00:02]} Bxc4 {[%emt 0:00:33]} 41. Rxb6 {[%emt 0:33:36]} Rb2 {[%emt 0:03:48]} 42. Rc1 {[%emt 0:00:00]} Rdd2 {[%emt 0:03:18]} 43. h4 {[%emt 0:00:00]} Bxb5 {[%emt 0:11:41]} 44. g3 {[%emt 0:00:00]} Rxf2 {[%emt 0:03:06]} 45. Rxb5 {[%emt 0:00:00]} Rg2+ {[%emt 0:02:53]} 46. Kf1 {[%emt 0:00:00]} Rbf2+ {[%emt 0:00:36]} 47. Ke1 {[%emt 0:00:00]} Re2+ {[%emt 0:00:08]} 48. Kf1 {[%emt 0:00:00]} Ref2+ {[%emt 0:00:04]} 49. Ke1 {[%emt 0:00:00]} Rf3 {[%emt 0:00:58]} 50. Rc8+ {[%emt 0:00:00]} Kh7 {[%emt 0:00:06]} 51. h5 {[%emt 0:00:00]} Rfxg3 {[%emt 0:01:47]} 52. Rbb8 {[%emt 0:00:00]} Rg1+ {[%emt 0:00:09]} 53. Kd2 {[%emt 0:00:00]} R3g2+ {[%emt 0:00:09]} 54. Kc3 {[%emt 0:00:00]} Rc1+ {[%emt 0:00:09]} 55. Kb3 {[%emt 0:00:00]} Rxc8 {[%emt 0:00:30]} 56. Rxc8 {[%emt 0:00:00]} Rh2 {[%emt 0:00:20]} 57. Rc5 {[%emt 0:00:00]} Rxh5 {[%emt 0:00:08]} 58. Kc4 {[%emt 0:00:00]} Kg6 {[%emt 0:00:48]} 59. Kd5 {[%emt 0:00:00]} Rh3 {[%emt 0:00:37]} 60. Kd4 {[%emt 0:12:38]} 0-1

[Event "10th Dolomiti Open 2019"]
[Site "Forni di Sopra"]
[Date "2019.06.16"]
[Round "2.10"]
[White "Sgircea, Silvia-Raluca"]
[Black "Sonis, Francesco"]
[Result "0-1"]
[ECO "E15"]
[WhiteElo "2256"]
[BlackElo "2494"]
[Annotator "ChessBase"]
[PlyCount "88"]
[EventDate "2019.06.15"]
[EventType "swiss"]
[EventCountry "ITA"]
[SourceTitle "playchess.com"]
[Source "ChessBase"]
[SourceQuality "1"]
[TimeControl "40/5400+30:1800+30"]

1. d4 {[%emt 0:00:00]} Nf6 {[%emt 0:00:00]} 2. Nf3 {[%emt 0:00:00]} e6 {[%emt 0:00:00]} 3. c4 {[%emt 0:00:05]} b6 {[%emt 0:00:00]} 4. g3 {[%emt 0:00:17]} Ba6 {[%emt 0:00:04]} 5. b3 {[%emt 0:00:11]} Bb4+ {[%emt 0:00:09]} 6. Bd2 {[%emt 0:00:06]} Be7 {[%emt 0:00:06]} 7. Bg2 {[%emt 0:00:11]} c6 {[%emt 0:00:08]} 8. O-O {[%emt 0:00:16]} d5 {[%emt 0:00:23]} 9. Bc3 {[%emt 0:10:17]} Nbd7 {[%emt 0:00:21]} 10. Nbd2 {[%emt 0:00:40]} O-O {[%emt 0:00:09]} 11. Re1 {[%emt 0:01:24]} c5 {[%emt 0:00:49]} 12. e4 {[%emt 0:05:16]} dxc4 {[%emt 0:00:25]} 13. Nxc4 {[%emt 0:01:04]} cxd4 {[%emt 0:03:54]} 14. Bxd4 {[%emt 0:23:08]} Rc8 {[%emt 0:15:11]} 15. Rc1 {[%emt 0:02:59]} b5 {[%emt 0:07:36]} 16. Nce5 {[%emt 0:11:24]} Nxe5 {[%emt 0:05:09]} 17. Bxe5 {[%emt 0:01:06]} Bb4 {[%emt 0:13:35]} 18. Re2 {[%emt 0:07:13]} Bb7 {[%emt 0:05:35]} 19. Bb2 {[%emt 0:12:10]} Qe7 {[%emt 0:15:48]} 20. Nd4 {[%emt 0:03:21]} a6 {[%emt 0:06:37]} 21. Rxc8 {[%emt 0:05:25]} Rxc8 {[%emt 0:00:10]} 22. Rc2 {[%emt 0:00:10]} Rd8 {[%emt 0:02:00]} 23. Qe2 {[%emt 0:00:35]} Qd7 {[%emt 0:02:40]} 24. a3 {[%emt 0:09:58]} Ba5 {[%emt 0:02:10]} 25. b4 {[%emt 0:00:11]} Bb6 {[%emt 0:00:03]} 26. Rd2 {[%emt 0:00:05]} Qc8 {[%emt 0:01:16]} 27. Kh1 {[%emt 0:04:38]} Bxd4 {[%emt 0:06:12]} 28. Bxd4 {[%emt 0:00:11]} e5 {[%emt 0:00:45]} 29. Bb2 {[%emt 0:00:53]} Rxd2 {[%emt 0:01:50]} 30. Qxd2 {[%emt 0:00:02]} Nxe4 {[%emt 0:00:10]} 31. Qe2 {[%emt 0:01:03]} Ng5 {[%emt 0:04:18]} 32. f3 {[%emt 0:01:01]} f6 {[%emt 0:00:07]} 33. h4 {[%emt 0:00:23]} Nf7 {[%emt 0:01:08]} 34. Qd2 {[%emt 0:00:36]} Qe6 {[%emt 0:00:21]} 35. Kh2 {[%emt 0:00:25]} Qd5 {[%emt 0:00:15]} 36. Qc1 {[%emt 0:00:35]} Qc6 {[%emt 0:00:04]} 37. Qd2 {[%emt 0:00:27]} Nd6 {[%emt 0:00:04]} 38. f4 {[%emt 0:00:31]} Qxg2+ {[%emt 0:00:08]} 39. Qxg2 {[%emt 0:00:01]} Bxg2 {[%emt 0:00:08]} 40. Kxg2 {[%emt 0:00:02]} Nc4 {[%emt 0:00:15]} 41. Bc1 {[%emt 0:30:01]} Kf7 {[%emt 0:30:14]} 42. fxe5 {[%emt 0:01:14]} fxe5 {[%emt 0:00:31]} 43. Kf3 {[%emt 0:00:01]} Ke6 {[%emt 0:10:42]} 44. Ke4 {[%emt 0:00:20]} Nd6+ {[%emt 0:00:30] Kd4} 0-1

[Event "10th Dolomiti Open 2019"]
[Site "Forni di Sopra"]
[Date "2019.06.17"]
[Round "3.4"]
[White "Martinez Alcantara, Jose Eduardo"]
[Black "Di Benedetto, Edoardo"]
[Result "1-0"]
[ECO "C11"]
[WhiteElo "2583"]
[BlackElo "2409"]
[Annotator "ChessBase"]
[PlyCount "93"]
[EventDate "2019.06.15"]
[EventType "swiss"]
[EventCountry "ITA"]
[SourceTitle "playchess.com"]
[Source "ChessBase"]
[SourceQuality "1"]
[TimeControl "40/5400+30:1800+30"]

1. e4 {[%emt 0:00:00]} e6 {[%emt 0:00:00]} 2. d4 {[%emt 0:00:02]} d5 {[%emt 0:00:00]} 3. Nc3 {[%emt 0:00:03]} Nf6 {[%emt 0:00:00]} 4. e5 {[%emt 0:00:17]} Nfd7 {[%emt 0:00:00]} 5. f4 {[%emt 0:00:05]} c5 {[%emt 0:00:00]} 6. Nf3 {[%emt 0:00:05]} Nc6 {[%emt 0:00:12]} 7. Be3 {[%emt 0:00:06]} Be7 {[%emt 0:00:22]} 8. Qd2 {[%emt 0:00:32]} O-O {[%emt 0:00:06]} 9. dxc5 {[%emt 0:00:11]} Qa5 {[%emt 0:00:06]} 10. a3 {[%emt 0:00:12]} Bxc5 {[%emt 0:01:21]} 11. Bxc5 {[%emt 0:00:32]} Qxc5 {[%emt 0:00:20]} 12. Bd3 {[%emt 0:08:58]} f6 {[%emt 0:05:52]} 13. exf6 {[%emt 0:02:16]} Nxf6 {[%emt 0:00:27]} 14. O-O-O {[%emt 0:04:13]} a6 {[%emt 0:02:57]} 15. Ne2 {[%emt 0:14:35]} b5 {[%emt 0:01:02]} 16. Kb1 {[%emt 0:05:03]} b4 {[%emt 0:03:16]} 17. a4 {[%emt 0:01:14]} b3 {[%emt 0:10:00]} 18. cxb3 {[%emt 0:05:23]} Rb8 {[%emt 0:02:30]} 19. Rc1 {[%emt 0:03:51]} Qd6 {[%emt 0:04:45]} 20. Ned4 {[%emt 0:04:55]} Nxd4 {[%emt 0:02:24]} 21. Nxd4 {[%emt 0:00:01]} Bd7 {[%emt 0:06:40]} 22. Rhe1 {[%emt 0:08:13]} Rfe8 {[%emt 0:07:30]} 23. Bc2 {[%emt 0:06:16]} Rb4 {[%emt 0:02:05]} 24. Rcd1 {[%emt 0:06:37]} a5 {[%emt 0:07:19]} 25. Qe3 {[%emt 0:02:29]} Qc5 {[%emt 0:04:10]} 26. g3 {[%emt 0:01:19]} Ng4 {[%emt 0:04:53]} 27. Qd2 {[%emt 0:03:47]} Rb6 {[%emt 0:10:46]} 28. h3 {[%emt 0:04:52]} Nh6 {[%emt 0:01:39]} 29. g4 {[%emt 0:00:37]} Nf7 {[%emt 0:01:49]} 30. f5 {[%emt 0:01:12]} e5 {[%emt 0:02:13]} 31. Ne6 {[%emt 0:00:02]} Bxe6 {[%emt 0:03:47]} 32. fxe6 {[%emt 0:00:07]} Rbxe6 {[%emt 0:01:04]} 33. Qxd5 {[%emt 0:00:13]} Qb6 {[%emt 0:07:25]} 34. Qe4 {[%emt 0:00:54]} g6 {[%emt 0:00:07]} 35. Rd5 {[%emt 0:02:59]} Nd6 {[%emt 0:02:32]} 36. Qe3 {[%emt 0:00:32]} Qb4 {[%emt 0:00:07]} 37. Qc3 {[%emt 0:00:42]} e4 {[%emt 0:05:03]} 38. Rxa5 {[%emt 0:01:34]} Qb6 {[%emt 0:00:10]} 39. b4 {[%emt 0:00:35]} e3 {[%emt 0:02:52]} 40. Bb3 {[%emt 0:03:35]} Ne4 {[%emt 0:00:15]} 41. Bxe6+ {[%emt 0:30:15]} Rxe6 {[%emt 0:02:48]} 42. Ra8+ {[%emt 0:00:00]} Kf7 {[%emt 0:00:09]} 43. Qh8 {[%emt 0:00:00]} Nd2+ {[%emt 0:00:44]} 44. Ka2 {[%emt 0:00:00]} Qxb4 {[%emt 0:01:21]} 45. Ra7+ {[%emt 0:00:00]} Re7 {[%emt 0:00:40]} 46. Qxh7+ {[%emt 0:00:00]} Kf6 {[%emt 0:00:06]} 47. Qxe7+ {[%emt 0:00:00]} 1-0

[Event "10th Dolomiti Open 2019"]
[Site "Forni di Sopra"]
[Date "2019.06.17"]
[Round "3.6"]
[White "Castellanos Rodriguez, Renier"]
[Black "Gueci, Tea"]
[Result "1-0"]
[ECO "D32"]
[WhiteElo "2511"]
[BlackElo "2257"]
[Annotator "RC"]
[PlyCount "147"]
[EventDate "2019.06.15"]
[EventType "swiss"]
[EventCountry "ITA"]
[SourceTitle "playchess.com"]
[Source "ChessBase"]
[SourceQuality "1"]
[TimeControl "40/5400+30:1800+30"]

1. c4 {[%emt 0:00:00]} e6 {[%emt 0:00:00]} 2. Nf3 {[%emt 0:00:22]} d5 {[%emt 0:00:00]} 3. e3 {[%emt 0:00:40]} Nf6 {[%emt 0:00:00]} 4. b3 {[%emt 0:00:36]} c5 {[%emt 0:00:54]} 5. Bb2 {[%emt 0:00:20]} Be7 {[%emt 0:01:33]} 6. cxd5 {[%emt 0:04:07]} exd5 {[%emt 0:00:23]} 7. d4 {[%emt 0:00:20]} Nc6 {[%emt 0:01:39]} 8. Be2 {[%emt 0:02:12]} O-O {[%emt 0:01:19]} 9. O-O {[%emt 0:00:12]} h6 {[%emt 0:04:32]} 10. Nc3 {[%emt 0:02:36]} Be6 {[%emt 0:05:36]} 11. Rc1 {[%emt 0:02:14]} b6 {[%emt 0:11:23]} 12. dxc5 {[%emt 0:06:35]} bxc5 {[%emt 0:00:21]} 13. Na4 {[%emt 0:00:13]} Nd7 {[%emt 0:11:14]} 14. Ne1 {[%emt 0:05:45]} Qa5 {[%emt 0:20:33]} 15. Nd3 {[%emt 0:02:51]} Bd6 {[%emt 0:12:24]} 16. Nf4 {[%emt 0:07:57]} Bxf4 {[%emt 0:02:03]} 17. exf4 {[%emt 0:00:33]} d4 {[%emt 0:01:01]} 18. Bd3 {[%emt 0:13:47]} Nb4 {[%emt 0:02:57]} 19. Bb1 {[%emt 0:03:03]} Rac8 {[%emt 0:05:43]} 20. Re1 {[%emt 0:06:22]} Qb5 {[%emt 0:02:52]} 21. a3 {[%emt 0:11:18]} Na6 {[%emt 0:01:12]} 22. Bd3 {[%emt 0:02:42]} Qb7 {[%emt 0:04:12]} 23. f5 {[%emt 0:07:39]} Bxb3 {[%emt 0:03:31]} 24. Bxa6 {[%emt 0:00:10]} Qb8 {[%emt 0:00:39]} 25. Qd2 {[%emt 0:07:59]} Rc6 {[%emt 0:02:19]} 26. Nxc5 {[%emt 0:01:27]} Nxc5 {[%emt 0:00:16]} 27. Qxd4 {[%emt 0:01:21]} f6 {[%emt 0:00:15]} 28. Bc4+ {[%emt 0:03:36]} Kh8 {[%emt 0:01:02]} 29. Bd5 {[%emt 0:01:08]} Rd6 {[%emt 0:02:41]} 30. Rxc5 {[%emt 0:00:56]} Rfd8 {[%emt 0:01:46]} 31. h3 {[%emt 0:01:54]} Rxd5 {[%emt 0:00:28]} 32. Rxd5 {[%emt 0:00:10]} Rxd5 {[%emt 0:00:01]} 33. Qg4 {[%emt 0:01:42]} Rd7 {[%emt 0:01:03]} 34. Bxf6 {[%emt 0:00:54]} gxf6 {[%emt 0:00:30]} 35. Qg6 {[%emt 0:00:05]} Rd1 {[%emt 0:00:31]} 36. Qxh6+ {[%emt 0:00:47]} Kg8 {[%emt 0:00:02]} 37. Qg6+ {[%emt 0:00:10]} Kf8 {[%emt 0:00:25]} 38. Qxf6+ {[%emt 0:00:19]} Kg8 {[%emt 0:00:07]} 39. Qg6+ {[%emt 0:00:42]} Kf8 {[%emt 0:00:05]} 40. Qh6+ {[%emt 0:00:17]} Kg8 {[%emt 0:00:36]} 41. Qg5+ {[%emt 0:32:13]} Kf8 {[%emt 0:30:44]} 42. Qe7+ {[%emt 0:02:09]} Kg8 {[%emt 0:00:24]} 43. Rxd1 {[%emt 0:00:29]} Bxd1 {[%emt 0:00:07]} 44. f6 {[%emt 0:00:00]} Qf8 {[%emt 0:00:00]} 45. Qxa7 {[%emt 0:00:00]} Qxf6 {[%emt 0:00:00]} 46. Qb8+ {[%emt 0:00:00]} Kg7 {[%emt 0:00:00]} 47. Qc7+ {[%emt 0:00:00]} Kg6 {[%emt 0:00:00]} 48. Qg3+ {[%emt 0:00:00]} Kf7 {[%emt 0:00:00]} 49. Qe3 {[%emt 0:00:00]} Bh5 {[%emt 0:00:00]} 50. g4 {[%emt 0:00:00]} Bg6 {[%emt 0:00:00]} 51. Kg2 {[%emt 0:00:00]} Kg7 {[%emt 0:00:00]} 52. Kg3 {[%emt 0:00:00]} Qc6 {[%emt 0:00:00]} 53. f4 {[%emt 0:00:00]} Be4 {[%emt 0:00:00]} 54. f5 {[%emt 0:00:00]} Kf7 {[%emt 0:00:00]} 55. Qa7+ {[%emt 0:00:00]} Kg8 {[%emt 0:00:00]} 56. Qb8+ {[%emt 0:00:00]} Kf7 {[%emt 0:00:00]} 57. Qe5 {[%emt 0:00:00]} Bh1 {[%emt 0:00:00]} 58. Qe3 {[%emt 0:00:00]} Qd6+ {[%emt 0:00:00]} 59. Kh4 {[%emt 0:00:00]} Qf6+ {[%emt 0:00:00]} 60. Qg5 {[%emt 0:00:00]} Qc3 {[%emt 0:00:00]} 61. Qg6+ {[%emt 0:00:00]} Kf8 {[%emt 0:00:00]} 62. Qd6+ {[%emt 0:05:12]} Kf7 {[%emt 0:00:00]} 63. Qe6+ {[%emt 0:00:24]} Kf8 {[%emt 0:00:00]} 64. Qd6+ {[%emt 0:02:56]} Kf7 {[%emt 0:00:00]} 65. Qd7+ {[%emt 0:00:11]} Kf8 {[%emt 0:00:00]} 66. a4 {[%emt 0:01:32]} Qh8+ {[%emt 0:03:15]} 67. Kg5 {[%emt 0:00:28]} Qxh3 {[%emt 0:02:11]} 68. Qd8+ {[%emt 0:00:28]} Kf7 {[%emt 0:00:14]} 69. Qd7+ {[%emt 0:00:23]} Kf8 {[%emt 0:00:17]} 70. Qd6+ {[%emt 0:00:10]} Kf7 {[%emt 0:00:37]} 71. Qe6+ {[%emt 0:00:29]} Kf8 {[%emt 0:00:10]} 72. f6 {[%emt 0:01:19]} Qa3 {[%emt 0:01:26]} 73. Qc8+ {[%emt 0:00:11]} Kf7 {[%emt 0:00:09]} 74. Qd7+ {[%emt 0:00:08]} 1-0

[Event "10th Dolomiti Open 2019"]
[Site "Forni di Sopra"]
[Date "2019.06.17"]
[Round "3.7"]
[White "Loiacono, Leonardo"]
[Black "Arjun, Kalyan"]
[Result "0-1"]
[ECO "D45"]
[WhiteElo "2241"]
[BlackElo "2484"]
[Annotator "ChessBase"]
[PlyCount "52"]
[EventDate "2019.06.15"]
[EventType "swiss"]
[EventCountry "ITA"]
[SourceTitle "playchess.com"]
[Source "ChessBase"]
[SourceQuality "1"]
[TimeControl "40/5400+30:1800+30"]

1. d4 {[%emt 0:00:00]} d5 {[%emt 0:00:00]} 2. c4 {[%emt 0:00:00]} c6 {[%emt 0:00:00]} 3. Nc3 {[%emt 0:00:00]} Nf6 {[%emt 0:00:00]} 4. Nf3 {[%emt 0:00:00]} e6 {[%emt 0:00:00]} 5. e3 {[%emt 0:00:00]} Nbd7 {[%emt 0:00:26]} 6. Qc2 {[%emt 0:00:08]} Bd6 {[%emt 0:00:26]} 7. g4 {[%emt 0:00:08]} h6 {[%emt 0:01:13]} 8. Rg1 {[%emt 0:00:08]} dxc4 {[%emt 0:01:10]} 9. Bxc4 {[%emt 0:01:59]} b5 {[%emt 0:00:38]} 10. Be2 {[%emt 0:00:21]} Bb7 {[%emt 0:02:33]} 11. e4 {[%emt 0:04:54]} b4 {[%emt 0:00:41]} 12. Na4 {[%emt 0:02:12]} Qa5 {[%emt 0:00:27]} 13. b3 {[%emt 0:04:08]} Be7 {[%emt 0:00:09]} 14. g5 {[%emt 0:08:33]} hxg5 {[%emt 0:01:54]} 15. Bxg5 {[%emt 0:00:17]} c5 {[%emt 0:18:39]} 16. e5 {[%emt 0:04:09]} Ne4 {[%emt 0:02:57]} 17. Bxe7 {[%emt 0:00:10]} Kxe7 {[%emt 0:00:02]} 18. Nd2 {[%emt 0:06:04]} cxd4 {[%emt 0:24:05]} 19. Nxe4 {[%emt 0:04:41]} Qxe5 {[%emt 0:01:07]} 20. Bf3 {[%emt 0:13:08]} f5 {[%emt 0:02:56]} 21. Qd2 {[%emt 0:01:06]} Bxe4 {[%emt 0:00:43]} 22. Qxb4+ {[%emt 0:00:14]} Kf6 {[%emt 0:01:52]} 23. Bxe4 {[%emt 0:03:12]} Qxe4+ {[%emt 0:01:07]} 24. Kf1 {[%emt 0:00:22]} Qd3+ {[%emt 0:00:26]} 25. Ke1 {[%emt 0:00:31]} Ne5 {[%emt 0:01:55]} 26. Rg3 {[%emt 0:00:06]} Rxh2 {[%emt 0:00:40]} 0-1

[Event "10th Dolomiti Open 2019"]
[Site "Forni di Sopra"]
[Date "2019.06.17"]
[Round "3.8"]
[White "Bellia, Fabrizio"]
[Black "Kumar, Nikhil"]
[Result "1/2-1/2"]
[ECO "B15"]
[WhiteElo "2450"]
[BlackElo "2257"]
[Annotator "ChessBase"]
[PlyCount "58"]
[EventDate "2019.06.15"]
[EventType "swiss"]
[EventCountry "ITA"]
[SourceTitle "playchess.com"]
[Source "ChessBase"]
[SourceQuality "1"]
[TimeControl "40/5400+30:1800+30"]

1. e4 {[%emt 0:00:00]} c6 {[%emt 0:00:00]} 2. d4 {[%emt 0:00:00]} d5 {[%emt 0:00:00]} 3. Nc3 {[%emt 0:00:00]} dxe4 {[%emt 0:00:00]} 4. Nxe4 {[%emt 0:00:04]} Nf6 {[%emt 0:00:00]} 5. Nxf6+ {[%emt 0:01:22]} exf6 {[%emt 0:00:06]} 6. c3 {[%emt 0:00:06]} Bd6 {[%emt 0:00:05]} 7. Bd3 {[%emt 0:00:05]} O-O {[%emt 0:00:19]} 8. Qc2 {[%emt 0:00:02]} Re8+ {[%emt 0:00:17]} 9. Ne2 {[%emt 0:00:05]} h5 {[%emt 0:00:38]} 10. Be3 {[%emt 0:01:02]} Nd7 {[%emt 0:00:26]} 11. O-O-O {[%emt 0:00:47]} Nf8 {[%emt 0:00:19]} 12. Kb1 {[%emt 0:04:41]} Be6 {[%emt 0:00:56]} 13. Nf4 {[%emt 0:03:40]} Bxf4 {[%emt 0:01:06]} 14. Bxf4 {[%emt 0:00:07]} b5 {[%emt 0:00:30]} 15. Rhe1 {[%emt 0:05:13]} a5 {[%emt 0:02:21]} 16. c4 {[%emt 0:02:48]} bxc4 {[%emt 0:06:15]} 17. Bxc4 {[%emt 0:00:56]} Qd7 {[%emt 0:00:41]} 18. Bxe6 {[%emt 0:03:58]} Nxe6 {[%emt 0:00:23]} 19. Qf5 {[%emt 0:02:06]} Rad8 {[%emt 0:01:01]} 20. Be3 {[%emt 0:07:59]} Qd5 {[%emt 0:01:55]} 21. Qxd5 {[%emt 0:01:28]} Rxd5 {[%emt 0:00:06]} 22. b3 {[%emt 0:15:23]} Nxd4 {[%emt 0:05:31]} 23. Bxd4 {[%emt 0:00:45]} Rxe1 {[%emt 0:00:24]} 24. Rxe1 {[%emt 0:00:04]} Rxd4 {[%emt 0:00:07]} 25. Rc1 {[%emt 0:00:10]} Rd2 {[%emt 0:00:43]} 26. Rc2 {[%emt 0:00:04]} Rd1+ {[%emt 0:04:05]} 27. Rc1 {[%emt 0:02:58]} Rd2 {[%emt 0:17:19]} 28. Rc2 {[%emt 0:00:13]} Rd1+ {[%emt 0:02:57]} 29. Rc1 {[%emt 0:02:20]} Rd2 {[%emt 0:00:46]} 1/2-1/2

[Event "10th Dolomiti Open 2019"]
[Site "Forni di Sopra"]
[Date "2019.06.17"]
[Round "3.10"]
[White "Cruz, Christian"]
[Black "Haug, Johannes"]
[Result "0-1"]
[ECO "A13"]
[WhiteElo "2561"]
[BlackElo "2438"]
[Annotator "ChessBase"]
[PlyCount "64"]
[EventDate "2019.06.15"]
[EventType "swiss"]
[EventCountry "ITA"]
[SourceTitle "playchess.com"]
[Source "ChessBase"]
[SourceQuality "1"]
[TimeControl "40/5400+30:1800+30"]

1. Nf3 {[%emt 0:00:00]} d5 {[%emt 0:00:00]} 2. e3 {[%emt 0:00:08]} Nf6 {[%emt 0:00:10]} 3. c4 {[%emt 0:01:57]} e6 {[%emt 0:00:06]} 4. b3 {[%emt 0:03:30]} b6 {[%emt 0:00:09]} 5. g3 {[%emt 0:05:41]} Bb7 {[%emt 0:01:39]} 6. Bg2 {[%emt 0:00:20]} Nbd7 {[%emt 0:04:27]} 7. O-O {[%emt 0:03:16]} Bd6 {[%emt 0:06:01]} 8. Nc3 {[%emt 0:07:08]} O-O {[%emt 0:03:30]} 9. Bb2 {[%emt 0:00:54]} a6 {[%emt 0:00:08]} 10. Qe2 {[%emt 0:07:25]} c5 {[%emt 0:05:18]} 11. Rfd1 {[%emt 0:05:05]} Qe7 {[%emt 0:02:27]} 12. d4 {[%emt 0:07:53]} dxc4 {[%emt 0:04:08]} 13. bxc4 {[%emt 0:00:37]} cxd4 {[%emt 0:05:53]} 14. exd4 {[%emt 0:00:29]} Rfe8 {[%emt 0:14:23]} 15. Ne5 {[%emt 0:13:51]} Bxg2 {[%emt 0:02:55]} 16. Kxg2 {[%emt 0:00:03]} Rac8 {[%emt 0:00:35]} 17. a4 {[%emt 0:14:34]} Bb4 {[%emt 0:10:50]} 18. Na2 {[%emt 0:04:34]} Ba3 {[%emt 0:02:34]} 19. Rab1 {[%emt 0:04:50]} Bxb2 {[%emt 0:03:07]} 20. Rxb2 {[%emt 0:00:09]} Qa3 {[%emt 0:09:50]} 21. Rb4 {[%emt 0:02:29]} a5 {[%emt 0:02:23]} 22. Rb5 {[%emt 0:06:55]} Qxa4 {[%emt 0:05:44]} 23. Nc3 {[%emt 0:00:44]} Qa3 {[%emt 0:00:25]} 24. Ne4 {[%emt 0:01:02]} Nxe4 {[%emt 0:02:38]} 25. Nxd7 {[%emt 0:00:40]} Nc3 {[%emt 0:01:55]} 26. Qg4 {[%emt 0:02:45]} Qe7 {[%emt 0:04:20]} 27. Nxb6 {[%emt 0:03:26]} Rb8 {[%emt 0:01:12]} 28. Rb2 {[%emt 0:02:19]} Nxd1 {[%emt 0:02:11]} 29. Qxd1 {[%emt 0:00:03]} Red8 {[%emt 0:01:55]} 30. c5 {[%emt 0:01:01]} Qxc5 {[%emt 0:02:28]} 31. dxc5 {[%emt 0:00:14]} Rxd1 {[%emt 0:00:02]} 32. c6 {[%emt 0:01:05]} Rc1 {[%emt 0:00:47]} 0-1